Cogmind - Beta 16 *** ADVENTURER MODE // 2025.12.27 @ 18:48:29 Player: Gentle Jesus Result: Self-destructed Performance ------------- Evolutions (9) 4500 Regions Visited (29) 5800 Robots Destroyed (90) 450 Value Destroyed (4564) 4564 Prototype IDs (30) 600 Alien Tech Used (2) 400 Bonus (6477) 6477 TOTAL SCORE: 22791 Bonus ------- Follower Combat Kills 1379 Met Imprinter 300 Met Zhirov 300 Built Enhanced Grunts 300 A7 Reached Mainframe 300 Acquired SGEMP 2000 Delivered SGEMP 2000 Friendly Fire -102 Cogmind --------- Core Integrity 835/1600 Matter 100/300 Energy 450/450 System Corruption 14% Temperature Cool (0) Movement Walking (120) Location -1/Command Parts ------- > --- POWER (2) -------- (None) > --- PROPULSION (7) --- Centrium Leg Centrium Leg > --- UTILITY (12) ----- Medium Storage Unit Energy Well Advanced Visual Processing Unit Advanced Signal Interpreter Improved Hacking Suite > --- WEAPON (4) ------- Disruptor Cannon > --- INVENTORY (10) --- Light Quantum Reactor Cooled Nova Cannon Advanced Remote Datajack Peak State ------------ > --- POWER ------------ Quantum Reactor Improved Quantum Reactor > --- PROPULSION ------- Improved Antigrav System Antigrav Array Antigrav Array Antigrav Array > --- UTILITY ---------- Advanced Heat Sink Advanced Heat Sink Advanced Heat Sink Advanced Heat Sink Experimental Cooling System Medium Storage Unit Advanced Visual Processing Unit Advanced Sensor Array Advanced Signal Interpreter Advanced Transmission Jammer Improved Core Shielding Improved System Shield > --- WEAPON ----------- Phase Gun Cooled Nova Cannon Enhanced Hardcell Cannon Graviton Cannon > --- INVENTORY -------- Quantum Reactor Light Quantum Reactor Cooled Antigrav System Cooled Antigrav System Advanced Sensor Array Transdimensional Reconstructor Enhanced Quantum Rifle Mini Grenade Launcher Improved Remote Datajack [Rating: 179] Favorites ----------- Power Enhanced Fission Core Engine Ion Engine Power Core Enhanced Fission Core Reactor Heavy Antimatter Reactor Propulsion Gyrokinetic Inverter Leg Centrium Leg Wheel Wheel Hover Unit Gyrokinetic Inverter Flight Unit Flight Unit Utility Advanced Heat Sink Device Advanced Heat Sink Storage Medium Storage Unit Processor Advanced Visual Processing Unit Hackware Hacking Suite Protection Centrium Medium Armor Plating Weapon Phasing Sabre Energy Gun Lightning Gun Energy Cannon Enhanced Nova Cannon Ballistic Gun Advanced KE Penetrator Ballistic Cannon Enhanced Hardcell Cannon Launcher Mini Grenade Launcher Slashing Weapon Phasing Sabre Piercing Weapon Enhanced Force Lance Build | -11 -10 -10 -10 -9 -8 -7 -7 -7 -7 -7 -7 -6 -6 -6 -6 -5 -5 -5 -5 -4 -4 -4 -4 -3 -3 -3 -2 -1 -1 ------- Run | Yrd Mat Min Exi Min Mat Fac Was Fac Low Low Zio Pro Fac Low Low Fac Ext Cet Arc Fac Upp Upp Zhi Pro Res Tes Res Acc Com Slots Evolved 18 | . . . . . 4 2 . . . . . . 2 . . 2 . . . 2 . . . . 2 . 2 2 . Power 1 | . . . . . . . . . . . . . 1 . . . . . . . . . . . . . . . . Propulsion 5 | . . . . . 3 . . . . . . . . . . 1 . . . . . . . . . . . 1 . Utility 10 | . . . . . 1 2 . . . . . . . . . 1 . . . 2 . . . . 1 . 2 1 . Weapon 2 | . . . . . . . . . . . . . 1 . . . . . . . . . . . 1 . . . . Parts Attached 132 | 8 . . . 1 8 2 1 4 . 2 2 1 1 . . 11 9 1 2 3 1 2 2 . . 23 2 12 34 Power 19 | 1 . . . . . . 1 . . 1 . . . . . 2 1 . 1 . . . 1 . . 4 1 2 4 Engine 3 | 1 . . . . . . 1 . . 1 . . . . . . . . . . . . . . . . . . . Core 3 | . . . . . . . . . . . . . . . . 2 1 . . . . . . . . . . . . Reactor 13 | . . . . . . . . . . . . . . . . . . . 1 . . . 1 . . 4 1 2 4 Propulsion 42 | 3 . . . . 5 1 . 2 . . . 1 . . . 6 2 . . 1 1 . . . . 3 . 3 14 Treads . | . . . . . . . . . . . . . . . . . . . . . . . . . . . . . . Leg 2 | . . . . . . . . . . . . . . . . . . . . . . . . . . . . . 2 Wheel 3 | 3 . . . . . . . . . . . . . . . . . . . . . . . . . . . . . Hover 28 | . . . . . . . . . . . . . . . . 6 2 . . 1 1 . . . . 3 . 3 12 Flight 9 | . . . . . 5 1 . 2 . . . 1 . . . . . . . . . . . . . . . . . Utility 48 | 2 . . . . 2 . . 2 . . 1 . 1 . . 3 4 1 . 2 . 2 1 . . 12 . 5 10 Device 21 | 1 . . . . 1 . . . . . . . . . . 1 2 . . 2 . 1 . . . 7 . 1 5 Storage 4 | 1 . . . . . . . . . . . . . . . 1 . . . . . . . . . . . . 2 Processor 10 | . . . . . 1 . . 2 . . 1 . . . . . . . . . . 1 . . . 2 . 2 1 Hackware 6 | . . . . . . . . . . . . . 1 . . . . . . . . . 1 . . 1 . 1 2 Protection 7 | . . . . . . . . . . . . . . . . 1 2 1 . . . . . . . 2 . 1 . Artifact . | . . . . . . . . . . . . . . . . . . . . . . . . . . . . . . Weapon 23 | 2 . . . 1 1 1 . . . 1 1 . . . . . 2 . 1 . . . . . . 4 1 2 6 Energy Gun 8 | 1 . . . . . 1 . . . . . . . . . . 1 . . . . . . . . 2 1 . 2 Energy Cannon 6 | . . . . 1 1 . . . . . . . . . . . . . . . . . . . . 1 . . 3 Ballistic Gun 2 | 1 . . . . . . . . . . . . . . . . . . 1 . . . . . . . . . . Ballistic Cannon 3 | . . . . . . . . . . . . . . . . . 1 . . . . . . . . . . 2 . Launcher 1 | . . . . . . . . . . 1 . . . . . . . . . . . . . . . . . . . Special Weapon . | . . . . . . . . . . . . . . . . . . . . . . . . . . . . . . Impact Weapon . | . . . . . . . . . . . . . . . . . . . . . . . . . . . . . . Slashing Weapon 1 | . . . . . . . . . . . 1 . . . . . . . . . . . . . . . . . . Piercing Weapon 2 | . . . . . . . . . . . . . . . . . . . . . . . . . . 1 . . 1 Special Melee Weapon . | . . . . . . . . . . . . . . . . . . . . . . . . . . . . . . Unidentified Prototypes 15 | . . . . . . 1 . . . . . . . . . 1 . 1 1 . . . 2 . . 5 1 1 2 Corrupted Parts 1 | . . . . . . . . . . . . . . . . . . . 1 . . . . . . . . . . System Corruption 5 | . . . . . . . . . . . . . . . . . . . 5 . . . . . . . . . . Parts Lost 49 | . . . . . . . . . . 1 . . . 1 . . 1 . . 4 1 2 . . . 6 4 1 28 Power 13 | . . . . . . . . . . 1 . . . . . . . . . . . 1 . . . 4 1 1 5 Propulsion 9 | . . . . . . . . . . . . . . . . . . . . 1 . 1 . . . . . . 7 Utility 18 | . . . . . . . . . . . . . . . . . 1 . . 2 1 . . . . 1 3 . 10 Weapon 9 | . . . . . . . . . . . . . . 1 . . . . . 1 . . . . . 1 . . 6 Highest Loss Streak 13 | . . . . . . . . . . 1 . . . 1 . . 1 . . 4 1 1 . . . 3 2 1 13 To Critical Strikes 1 | . . . . . . . . . . . . . . . . . . . . . . . . . . . . . 1 Average Backups 8 | 2 5 5 5 6 7 7 7 8 8 7 7 8 8 7 7 7 9 9 9 9 8 7 8 10 10 8 6 8 8 Power 1 | . 1 1 1 1 1 1 1 2 1 . . . 1 1 1 1 2 2 2 2 2 2 2 2 2 . 1 1 2 Propulsion 1 | . 3 3 3 4 1 1 1 1 1 1 1 1 1 1 1 1 1 1 1 1 . . . . . 1 2 1 . Utility 2 | . . . . . 1 2 3 3 3 4 4 3 3 3 3 2 3 4 4 2 2 1 1 3 3 2 . . 1 Weapon 2 | . 1 1 1 1 3 3 2 2 2 1 2 3 3 2 2 2 2 2 2 3 4 4 4 4 4 2 2 2 2 Tool/Special . | . . . . . . . . . . . . . . . . . . . . . . . . . . . . . . Unused Backups 16 | . . . . 1 . 1 . 1 1 . 2 . . . . 1 1 . . . . . . . . 4 . 1 3 Power 7 | . . . . . . . . 1 1 . . . . . . . 1 . . . . . . . . 2 . 1 1 Propulsion 3 | . . . . 1 . . . . . . . . . . . 1 . . . . . . . . . 1 . . . Utility 1 | . . . . . . . . . . . 1 . . . . . . . . . . . . . . . . . . Weapon 3 | . . . . . . 1 . . . . 1 . . . . . . . . . . . . . . 1 . . . Tool/Special 2 | . . . . . . . . . . . . . . . . . . . . . . . . . . . . . 2 Average Slot Usage (%) 83 | . 100 100 100 100 86 76 76 89 92 97 94 92 79 79 80 85 89 93 94 92 83 84 78 84 76 77 70 68 76 Engine 2 | . 14 14 14 14 9 7 7 7 7 7 7 7 6 6 6 . . . . . . . . . . . . . . Core 2 | . . . . . . . . . . . . . . . . 10 11 11 7 5 5 4 . . . . . . . Reactor 3 | . . . . . . . . . . . . . . . . . . . 2 5 5 5 6 10 9 8 6 7 6 Wheel 1 | . 28 28 28 28 . . . . . . . . . . . . . . . . . . . . . . . . . Hover 16 | . . . . . . . . . . . . . . . . 31 35 35 35 30 30 28 26 26 23 14 13 16 17 Flight 8 | . . . . . 41 38 38 38 38 38 38 38 33 33 33 2 . . . . . . . . . . . . . Device 12 | . 14 14 14 14 9 7 7 7 7 7 7 7 6 6 6 9 5 5 5 13 14 15 15 15 14 19 24 24 18 Storage 5 | . 14 14 14 14 9 7 7 7 7 7 7 7 6 6 6 5 5 5 5 5 5 5 5 5 4 4 4 4 4 Processor 9 | . . . . . 7 7 7 20 23 23 23 23 13 13 13 11 11 11 11 9 5 9 10 10 9 4 2 2 11 Hackware 4 | . . . . . . . . . . . . . 5 6 6 5 5 5 5 5 5 5 6 10 9 7 2 2 4 Protection 2 | . . . . . . . . . . . . . . . . . 4 5 5 5 5 5 2 . . 4 3 3 3 Energy Gun 2 | . 14 14 14 14 2 7 7 7 7 7 7 7 6 1 . . . 4 5 4 . . . . . . 3 4 . Energy Cannon 1 | . . . . 5 8 . . . . . . . . . . . . . . . . . . . . 2 3 . 2 Slashing Weapon 1 | . . . . . . . . . . . . . . 4 6 5 5 5 5 5 5 5 5 5 4 . . . . Piercing Weapon 1 | . . . . . . . . . . . . . . . . . . . . . . . . . . 3 4 3 3 Peak Build Rating 179 | 7 7 7 7 7 17 21 26 34 34 35 38 35 35 36 36 74 84 88 98 104 90 100 93 93 93 153 156 179 176 Average Rating 88 | 5 7 7 7 6 15 15 22 32 33 34 33 34 34 35 36 69 77 86 89 98 89 92 85 92 93 131 145 144 140 On Entrance 56 | . 7 7 7 7 7 15 21 26 34 33 34 34 35 35 36 36 74 78 88 98 82 87 85 93 93 93 150 125 167 Avg Prop Armor Cover (%) 3 | . . . . . 3 3 3 . . . . . . . . 2 2 4 4 . . . . . . . . . 10 Naked Turns . | . . . . . . . . . . . . . . . . . . . . . . . . . . . . . . Heaviest Build 95 | 14 14 14 14 16 18 15 19 19 19 21 21 20 20 20 20 34 59 55 64 67 55 55 53 53 53 84 78 88 95 Greatest Support 97 | 26 20 20 20 20 16 21 21 23 23 23 23 23 23 23 23 55 64 64 55 66 66 66 57 57 57 84 84 97 97 Greatest Overweight (x) 4 | . . . . . 1 . . . . . . . . . . 2 4 . 1 1 . . . . . 1 . . 3 Average Overweight (x) . | . . . . . . . . . . . . . . . . . . . . . . . . . . . . . . Largest Inventory Capacity 10 | 8 8 8 8 8 8 8 8 8 8 8 8 8 8 8 8 10 10 10 10 10 10 10 10 10 10 10 10 10 10 Average Capacity 9 | 7 8 8 8 8 8 8 8 8 8 8 8 8 8 8 8 8 10 10 10 10 10 10 10 10 10 10 10 10 10 Most Carried 10 | 5 5 5 5 8 8 8 8 8 8 8 8 8 8 8 7 9 10 10 10 10 10 7 10 10 10 10 10 10 10 Average Carried 8 | 2 5 5 5 7 7 7 7 8 8 7 7 8 8 7 7 7 9 9 9 9 8 6 8 9 10 9 9 9 8 Final Capacity 10 | 8 8 8 8 8 8 8 8 8 8 8 8 8 8 8 8 10 10 10 10 10 10 10 10 10 10 10 10 10 10 Final Carried 10 | 5 5 5 5 8 8 7 8 8 8 6 8 8 8 7 7 9 10 10 9 10 8 7 10 10 10 10 10 10 3 Class Distribution -------------------- 32% | Hacker-Mutant 13% | Hacker-Scout 11% | Scout 10% | Scavenger-Mutant 8% | Scavenger-Ninja 7% | Commander-Mutant 5% | Mutant 4% | Scavenger-Sprinter Dominant Class ---------------- Mutant | -10/Materials Mutant | -10/Mines Mutant | -10/Exiles Mutant | -9/Mines Scavenger-Mutant | -8/Materials Scavenger-Sprinter | -7/Factory Scavenger-Sprinter | -7/Waste Scout | -7/Factory Scout | -7/Lower Caves Scout | -7/Lower Caves Scout | -7/Zion Scout | -6/Proximity Caves Hacker-Scout | -6/Factory Hacker-Scout | -6/Lower Caves Hacker-Scout | -6/Lower Caves Hacker-Scout | -5/Factory Hacker-Mutant | -5/Extension Hacker-Mutant | -5/Cetus Commander-Mutant | -5/Archives Hacker-Scout | -4/Factory Hacker-Mutant | -4/Upper Caves Hacker-Mutant | -4/Upper Caves Hacker-Mutant | -4/Zhirov Hacker-Mutant | -3/Proximity Caves Hacker-Mutant | -3/Research Hacker-Mutant | -3/Testing Scavenger-Mutant | -2/Research Scavenger-Mutant | -1/Access Scavenger-Ninja | -1/Command Resources | -11 -10 -10 -10 -9 -8 -7 -7 -7 -7 -7 -7 -6 -6 -6 -6 -5 -5 -5 -5 -4 -4 -4 -4 -3 -3 -3 -2 -1 -1 ----------- Run | Yrd Mat Min Exi Min Mat Fac Was Fac Low Low Zio Pro Fac Low Low Fac Ext Cet Arc Fac Upp Upp Zhi Pro Res Tes Res Acc Com Matter Collected 2720 | 286 . . . 15 80 . . . 90 23 92 10 10 10 . 110 322 33 10 30 39 20 . 55 26 517 . 109 833 Remotely . | . . . . . . . . . . . . . . . . . . . . . . . . . . . . . . Salvage Created 4682 | 177 . . . 69 . . . 23 145 20 . . 73 . . 228 884 80 91 139 79 126 . . 149 1080 100 108 1111 Parts 205 | 10 . . . 6 . . . 1 . . . . 8 . . 12 33 3 4 4 . 1 . . 3 47 2 7 64 Haulers Intercepted . | . . . . . . . . . . . . . . . . . . . . . . . . . . . . . . Recyclers Shooed . | . . . . . . . . . . . . . . . . . . . . . . . . . . . . . . Parts Field Recycled . | . . . . . . . . . . . . . . . . . . . . . . . . . . . . . . Retrieved Matter . | . . . . . . . . . . . . . . . . . . . . . . . . . . . . . . Parts Self-Destructed 9 | . . . . . . . . . . . 1 6 . . . . . . . . . 2 . . . . . . . Prevented 4 | . . . . . . . . . . . . . . . . . . . . . . 4 . . . . . . . Parts Restored . | . . . . . . . . . . . . . . . . . . . . . . . . . . . . . . Kills | -11 -10 -10 -10 -9 -8 -7 -7 -7 -7 -7 -7 -6 -6 -6 -6 -5 -5 -5 -5 -4 -4 -4 -4 -3 -3 -3 -2 -1 -1 ------- Run | Yrd Mat Min Exi Min Mat Fac Was Fac Low Low Zio Pro Fac Low Low Fac Ext Cet Arc Fac Upp Upp Zhi Pro Res Tes Res Acc Com Combat Hostiles Destroyed 59 | . . . . 4 . . . . . . . . . . . . 12 1 1 3 . 3 . . . 14 1 1 19 Melee 9 | . . . . . . . . . . . . . . . . . 8 . . . . . . . . 1 . . . Guns 13 | . . . . 4 . . . . . . . . . . . . . . 1 1 . . . . . 6 . . 1 Cannons 25 | . . . . . . . . . . . . . . . . . 1 . . 1 . . . . . 6 . 1 16 AOE 7 | . . . . . . . . . . . . . . . . . 3 . . 1 . 3 . . . . . . . Classes Destroyed 15 | 2 . . . 1 . . . 1 . 1 . . . . . 1 4 . . . . . . . . 4 1 . . Worker 6 | . . . . . . . . . . . . . 1 . . 2 . . . . . . . . . 1 . 2 . Builder 3 | . . . . . . . . . . . . . . . . 1 2 . . . . . . . . . . . . Tunneler 5 | 4 . . . . . . . . . . . . . . . 1 . . . . . . . . . . . . . Recycler 6 | 1 . . . . . . . . . . . . . . . 1 1 . . . . . . . 1 1 . . 1 Operator 3 | . . . . . . . . . . . . . . . . . 1 . . . . . . . . . . . 2 Watcher 6 | . . . . . . . . 1 . . . . 2 . . . . . . . . . . . . . . 1 2 Swarmer 17 | . . . . 4 . . . . . . . . . . . . . . . 1 . 3 . . . 4 . . 5 Grunt 10 | . . . . . . . . . . . . . . . . . 6 . . 2 . . . . . 2 . . . Duelist 1 | . . . . . . . . . . . . . . . . . 1 . . . . . . . . . . . . Researcher 2 | . . . . . . . . . . . . . . . . . . . . . . . . . . 2 . . . Sentry 10 | . . . . . . . . . . . . . . . . . 5 . 1 . . . . . . 1 . . 3 Hunter 2 | . . . . . . . . . . . . . . . . . . . . . . . . . . . 1 . 1 Programmer 15 | . . . . . . . . . . . . . . . . . . . . . . . . . . 4 . 1 10 Cetus Guard 1 | . . . . . . . . . . . . . . . . . . 1 . . . . . . . . . . . Striker 2 | . . . . . . . . . . . . . . . . . . . . . . . . . . 2 . . . Alpha 7 1 | . . . . . . . . . . . . . . . . . . . . . . . . . . 1 . . . Decomposer 1 | . . . . . . . . . . 1 . . . . . . . . . . . . . . . . . . . Packrat 4 | . . . . . . . . . 2 . . . . . . . . . . . 1 1 . . . . . . . Best Kill Streak 5 | 5 . . . 4 . . . 1 . . . . 2 . . 2 3 1 1 2 . 3 . . 1 3 1 2 4 Combat Bots Only 4 | . . . . 4 . . . . . . . . . . . . 2 1 1 2 . 3 . . . 3 1 1 4 Max Kills in Single Turn 3 | 2 . . . 1 . . . 1 1 1 . . 1 . . 1 3 1 1 1 1 2 . . 1 1 1 1 1 Gunslinging . | . . . . . . . . . . . . . . . . . . . . . . . . . . . . . . Exploded 2 | . . . . . . . . . . . . . . . . . 2 . . 1 . 2 . . . . . . . Melee 1 | . . . . . . . . . . . . . . . . . 1 . . . . . . . . 1 . . . Uniques/NPCs Destroyed . | . . . . . . . . . . . . . . . . . . . . . . . . . . . . . . Combat | -11 -10 -10 -10 -9 -8 -7 -7 -7 -7 -7 -7 -6 -6 -6 -6 -5 -5 -5 -5 -4 -4 -4 -4 -3 -3 -3 -2 -1 -1 -------- Run | Yrd Mat Min Exi Min Mat Fac Was Fac Low Low Zio Pro Fac Low Low Fac Ext Cet Arc Fac Upp Upp Zhi Pro Res Tes Res Acc Com Hostile Shots Fired 849 | . . . . 11 7 . . 5 . 2 . 13 . 3 . 3 53 7 . 22 7 49 . 6 3 160 101 23 374 Missed 312 | . . . . 4 6 . . 3 . . . 7 . 1 . 2 14 5 . 7 3 24 . 2 3 62 40 6 123 Hits 537 | . . . . 7 1 . . 2 . 2 . 6 . 2 . 1 39 2 . 15 4 25 . 4 . 98 61 17 251 Melee 4 | . . . . . . . . . . . . . . . . . . . . . 1 . . . . 1 . . 2 Projectile 533 | . . . . 7 1 . . 2 . 2 . 6 . 2 . 1 39 2 . 15 3 25 . 4 . 97 61 17 249 AOE 1 | . . . . . . . . . . . . . . . . . . . . . . . . . . . . 1 . Critical Strikes 27 | . . . . . . . . . . . . . . . . 1 4 . . . 1 . . . . 6 5 . 10 Actively Blocked 1 | . . . . . . . . . . . . . . . . . . . . . . . . . . . . . 1 Part Disruptions 7 | . . . . . . . . . . . . . . . . . . . . . . . . . . 1 . . 6 Damage Taken 9360 | 22 . . . 46 12 . . 24 . 49 . 36 58 29 . 21 536 54 . 531 85 320 . 64 . 1747 1422 387 3917 Core 1427 | . . . . 27 12 . . . . . . 12 . . . 21 77 . . 65 . 68 . 46 . 223 205 62 609 Absorbed by Shields 229 | . . . . . . . . . . . . . . . . . 201 28 . . . . . . . . . . . Redirected to Shielding 282 | . . . . . . . . . . . . . . . . . . . . . . . . . . 174 . 11 97 Ignored by Resistances 2489 | 6 . . . 14 4 . . 6 . 16 . 11 15 8 . 6 202 22 . 71 23 90 . 19 . 485 293 106 1092 Regen/Repaired (Parts) 241 | . . . . . . . . . . . . . . . . . . . . . . . . . . 135 106 . . Core Remaining (%) 91 | 100 . . . 89 97 . . . . . . 98 . . 100 . . . 90 . . . . 84 . 82 85 . . Volleys Fired 289 | 6 . . . 5 11 1 . 5 8 8 4 . 8 . . . 34 9 1 23 . 2 . . . 61 2 11 90 Largest 3 | 2 . . . 2 1 1 . 1 1 1 1 . 1 . . . 2 1 1 1 . 1 . . . 3 2 1 3 Hottest 319 | 60 . . . 60 80 55 . 55 55 30 55 . 55 . . . 145 65 65 80 . 30 . . . 319 225 150 243 Shots Fired 439 | 12 . . . 10 11 1 . 5 8 8 4 . 8 . . . 38 9 1 23 . 2 . . . 120 4 11 164 Gun 159 | 12 . . . 10 . 1 . 5 8 . 4 . 8 . . . 4 9 1 9 . . . . . 61 2 6 19 Cannon 255 | . . . . . 11 . . . . . . . . . . . 19 . . 14 . . . . . 59 2 5 145 Launcher 25 | . . . . . . . . . . 8 . . . . . . 15 . . . . 2 . . . . . . . Special . | . . . . . . . . . . . . . . . . . . . . . . . . . . . . . . Kinetic 141 | 6 . . . 5 . . . . . . . . . . . . 5 . . . . . . . . 49 . 3 73 Thermal 196 | . . . . . 11 . . . . . . . . . . . 14 . . 14 . . . . . 60 2 8 87 Explosive 25 | . . . . . . . . . . 8 . . . . . . 15 . . . . 2 . . . . . . . Electromagnetic 77 | 6 . . . 5 . 1 . 5 8 . 4 . 8 . . . 4 9 1 9 . . . . . 11 2 . 4 Robot Hit Streak 33 | 7 . . . 5 . . . 1 5 . 1 . 3 . . . 9 5 3 5 . 5 . . . 16 7 9 33 Robot Miss Streak 3 | 1 . . . 1 . . . 2 1 . 1 . 3 . . . 1 1 . 2 . . . . . 2 . 2 3 Penetration Max 1 | . . . . . . . . . . . . . . . . . . . . . . . . . . 1 . . . Secondary Targets 2 | . . . . 2 . . . . . . . . . . . . . . . . . . . . . . . . . Max Gunslinging Chain 1 | . . . . 1 . . . . . . . . . . . . . . . . . . . . . . . . . Shots Hit Robots 318 | 10 . . . 6 . . . 1 7 . 1 . 4 . . 9 38 9 1 9 1 3 . . 1 94 5 9 110 Core Hits 151 | 6 . . . 4 . . . 1 3 1 . . 4 . . 5 40 2 1 8 . 2 . . 1 34 1 5 33 Critical Kills 5 | . . . . . . . . . . . . . . . . . . . . . . . . . . 3 . . 2 Critical Parts Destroyed 2 | . . . . . . . . . . . . . . . . . . . . . . . . . . 2 . . . Critical Strikes 16 | . . . . . . . . . . . . . . . . . 1 . . 1 . . . . . 5 . 1 8 Burn 1 | . . . . . . . . . . . . . . . . . . . . . . . . . . . . 1 . Meltdown 3 | . . . . . . . . . . . . . . . . . . . . . . . . . . 1 . . 2 Destroy 4 | . . . . . . . . . . . . . . . . . . . . . . . . . . 4 . . . Blast 6 | . . . . . . . . . . . . . . . . . . . . . . . . . . . . . 6 Sever 2 | . . . . . . . . . . . . . . . . . 1 . . 1 . . . . . . . . . Melee Attacks 161 | . . . . . . . . . . . . . . 6 . 24 33 2 . 6 1 1 . . 5 47 15 12 9 Impact . | . . . . . . . . . . . . . . . . . . . . . . . . . . . . . . Slashing 81 | . . . . . . . . . . . . . . 6 . 24 33 2 . 6 1 1 . . 5 3 . . . Piercing 80 | . . . . . . . . . . . . . . . . . . . . . . . . . . 44 15 12 9 Sneak Attacks 17 | . . . . . . . . . . . . . . . . 5 1 . . 1 1 1 . . 1 4 1 2 . Combat Hostiles 1 | . . . . . . . . . . . . . . . . . . . . 1 . . . . . . . . . Follow-up Attacks . | . . . . . . . . . . . . . . . . . . . . . . . . . . . . . . Damage Inflicted 14732 | 185 . . . 73 . . . 32 237 40 20 . 262 . . 594 2340 232 21 703 95 358 . . 87 3700 334 476 4943 Guns 2940 | 110 . . . 73 . . . 32 185 . 20 . 126 . . . 82 148 21 165 . . . . . 1275 60 75 568 Cannons 6641 | . . . . . . . . . . . . . . . . . 102 . . 78 . . . . . 1774 172 179 4336 Explosions 1787 | 75 . . . . . . . . 52 40 . . 136 . . . 851 . . 378 . 255 . . . . . . . Melee 3361 | . . . . . . . . . . . . . . . . 594 1305 84 . 82 95 103 . . 87 651 102 222 36 Ramming 3 | . . . . . . . . . . . . . . . . . . . . . . . . . . . . . 3 Kinetic 3579 | 26 . . . 24 . . . . . . . . . . . . . . . . . . . . . 1127 . 179 2223 Thermal 5691 | 75 . . . . . . . . 52 . . . 136 . . . 302 . . 456 . . . . . 1774 172 75 2649 Explosive 946 | . . . . . . . . . . 40 . . . . . . 651 . . . . 255 . . . . . . . Electromagnetic 1152 | 84 . . . 49 . . . 32 185 . 20 . 126 . . . 82 148 21 165 . . . . . 148 60 . 32 Impact . | . . . . . . . . . . . . . . . . . . . . . . . . . . . . . . Slashing 2424 | . . . . . . . . . . . . . . . . 594 1305 84 . 82 95 103 . . 87 74 . . . Piercing 937 | . . . . . . . . . . . . . . . . . . . . . . . . . . 577 102 222 36 Highest Corruption 14 | . . . . . . . . . . . . . . . . . . . 5 8 8 8 8 8 . 4 5 . 14 Average Corruption 6 | . . . . . . . . . . . . . . . . . . . 5 8 8 8 8 8 . 3 5 . 6 Corruption Purged . | . . . . . . . . . . . . . . . . . . . . . . . . . . . . . . Corruption Blocked . | . . . . . . . . . . . . . . . . . . . . . . . . . . . . . . Effects 49 | . . . . . . . . . . . . . . . . . . . . 1 4 6 4 3 . 7 2 . 22 Message Errors 12 | . . . . . . . . . . . . . . . . . . . . . 3 2 2 . . . . . 5 Matter Fused 14 | . . . . . . . . . . . . . . . . . . . . 1 . . 1 2 . 2 1 . 7 Heat Flow Errors 1 | . . . . . . . . . . . . . . . . . . . . . . . . . . . . . 1 Energy Discharges 5 | . . . . . . . . . . . . . . . . . . . . . 1 . . 1 . 1 . . 2 Parts Rejected 3 | . . . . . . . . . . . . . . . . . . . . . . 1 . . . . 1 . 1 Data Loss (minor) 6 | . . . . . . . . . . . . . . . . . . . . . . 2 1 . . 1 . . 2 Data Loss (major) 2 | . . . . . . . . . . . . . . . . . . . . . . 1 . . . 1 . . . Misfires 2 | . . . . . . . . . . . . . . . . . . . . . . . . . . 1 . . 1 Alerts 1 | . . . . . . . . . . . . . . . . . . . . . . . . . . 1 . . . Misdirections 3 | . . . . . . . . . . . . . . . . . . . . . . . . . . . . . 3 Overload Shots 16 | . . . . . . . . . . . . . . . . . . . . . . . . . . 12 2 2 . Overflow Damage 1027 | . . . . . . . . . . . . . . . . 128 15 . . 51 72 141 . . . 233 64 49 274 Projectiles 424 | . . . . . . . . . . . . . . . . . . . . . . . . . . 148 2 . 274 Explosions 101 | . . . . . . . . . . . . . . . . . 9 . . 51 . 41 . . . . . . . Melee 502 | . . . . . . . . . . . . . . . . 128 6 . . . 72 100 . . . 85 62 49 . Knockbacks 9 | . . . . . . . . . . . . . . . . . . . . . . . . . . . . . 9 Impact . | . . . . . . . . . . . . . . . . . . . . . . . . . . . . . . Kinetic 9 | . . . . . . . . . . . . . . . . . . . . . . . . . . . . . 9 Secondary . | . . . . . . . . . . . . . . . . . . . . . . . . . . . . . . Self-Inflicted Damage 119 | 23 . . . . . . . . . 29 . . 58 . . . . . . 8 . . . . . . . . 1 Shots 6 | 1 . . . . . . . . . 3 . . 1 . . . . . . 1 . . . . . . . . . Rammed 1 | . . . . . . . . . . . . . . . . . . . . . . . . . . . . . 1 Targets Rammed 1 | . . . . . . . . . . . . . . . . . . . . . . . . . . . . . 1 Kicked . | . . . . . . . . . . . . . . . . . . . . . . . . . . . . . . Crushed . | . . . . . . . . . . . . . . . . . . . . . . . . . . . . . . Highest Temperature 345 | 52 . . . 40 108 8 . 28 94 9 41 17 34 14 . 199 336 345 46 29 . . . . . 93 . . 192 Average Temperature 73 | 20 . . . 19 39 7 . 11 48 5 18 11 15 10 . 58 78 183 16 8 . . . . . 34 . . 75 Received Heat Transfer 894 | . . . . . 9 . . . . . . 18 . 18 . . 161 16 . 9 21 18 . 24 . 171 126 27 276 Effects 1 | . . . . . . . . . . . . . . . . . . 1 . . . . . . . . . . . Energy Bleed 1 | . . . . . . . . . . . . . . . . . . 1 . . . . . . . . . . . Siege Activations . | . . . . . . . . . . . . . . . . . . . . . . . . . . . . . . Martial Activations . | . . . . . . . . . . . . . . . . . . . . . . . . . . . . . . Shielding Activations . | . . . . . . . . . . . . . . . . . . . . . . . . . . . . . . Robots Disrupted . | . . . . . . . . . . . . . . . . . . . . . . . . . . . . . . Combat Hostiles . | . . . . . . . . . . . . . . . . . . . . . . . . . . . . . . Robots Corrupted 3 | . . . . . . . . . 1 . . . . . . . . 1 . . . . . . . . 1 . . Combat Hostiles 2 | . . . . . . . . . . . . . . . . . . 1 . . . . . . . . 1 . . Parts Fried 2 | . . . . . . . . . . . . . . . . . 1 1 . . . . . . . . . . . Impact Corruptions . | . . . . . . . . . . . . . . . . . . . . . . . . . . . . . . Robots Melted 3 | . . . . . . . . . . . . . . . . . . . . . . . . . . 1 . . 2 Combat Hostiles 3 | . . . . . . . . . . . . . . . . . . . . . . . . . . 1 . . 2 Parts Melted 11 | . . . . . . . . . . . . . . . . . . . . . . . . . . 3 . . 8 Heat Transferred 5262 | 50 . . . . . . . . . . . . 100 . . . 400 . . 450 . . . . . 1820 100 185 2157 Parts Sabotaged . | . . . . . . . . . . . . . . . . . . . . . . . . . . . . . . Parts Stolen . | . . . . . . . . . . . . . . . . . . . . . . . . . . . . . . Parts Stripped . | . . . . . . . . . . . . . . . . . . . . . . . . . . . . . . Power Chain Reactions 5 | 1 . . . . . . . . 1 . . . 1 . . . . . . 1 . . . . . . 1 . . Alert | -11 -10 -10 -10 -9 -8 -7 -7 -7 -7 -7 -7 -6 -6 -6 -6 -5 -5 -5 -5 -4 -4 -4 -4 -3 -3 -3 -2 -1 -1 ------- Run | Yrd Mat Min Exi Min Mat Fac Was Fac Low Low Zio Pro Fac Low Low Fac Ext Cet Arc Fac Upp Upp Zhi Pro Res Tes Res Acc Com Maximum Alert Level 1 | . . . . . . . . . . . . . 1 . . . 1 . . 1 . . . . . . . . 1 Low Security (%) 89 | 100 100 100 . 100 100 100 100 100 . . . . . . . 100 73 100 100 39 . . . . 100 100 100 100 93 Level 1 10 | . . . . . . . . . . . . . 100 . . . 26 . . 60 . . . . . . . . 6 Level 2 . | . . . . . . . . . . . . . . . . . . . . . . . . . . . . . . Level 3 . | . . . . . . . . . . . . . . . . . . . . . . . . . . . . . . Level 4 . | . . . . . . . . . . . . . . . . . . . . . . . . . . . . . . Level 5 . | . . . . . . . . . . . . . . . . . . . . . . . . . . . . . . High Security . | . . . . . . . . . . . . . . . . . . . . . . . . . . . . . . Max Security . | . . . . . . . . . . . . . . . . . . . . . . . . . . . . . . Peak Influence 395 | 15 2 . . 90 30 11 15 31 . . . . 395 . . 55 382 176 81 392 . . . . 32 130 145 113 238 Initial 366 | . 2 . . . 19 11 . 2 . . . . 366 . . 55 5 176 9 11 . . . . 8 4 16 75 63 Average 79 | 3 . . . 67 7 . 5 5 . . . . 364 . . 12 128 101 51 215 . . . . 14 36 32 61 108 Influence Increases 4622 | 25 . . . 90 55 9 15 31 . . . 172 379 45 . 67 976 124 142 549 . 100 . 15 43 550 269 217 749 Destroy 0b10 Robot/C 1900 | . . . . 80 . . . . . . . 80 . . . . 500 80 80 280 . 60 . . . 320 20 20 380 Destroy 0b10 Robot/NC 190 | 25 . . . . . . . 5 . . . 5 15 . . 25 30 5 . 20 . . . . 5 10 . 20 25 Destroy Leader 308 | . . . . 10 . . . 2 . . . 20 4 . . . 70 . . 44 . 10 . . . 30 10 14 94 Allied During Kill 348 | . . . . . . . . . . . . 7 . . . . 165 26 40 109 . . . . . . . 1 . Successful Hack 122 | . . . . . . . . 24 . . . . . . . . 15 7 . 12 . . . . . 24 12 12 16 Select Force Hacks 50 | . . . . . . . . . . . . . . . . . . . . . . . . . . . 50 . . Disable Machine 270 | . . . . . 18 9 . . . . . . 36 . . 18 27 . 18 9 . . . . . 81 . 27 27 Destroy Structure 519 | . . . . . 7 . . . . . . . 24 . . 24 124 6 4 60 . . . . 8 70 27 18 147 Advance Influence 300 | . . . . . . . . . . . . . 300 . . . . . . . . . . . . . . . . Partial Spotted 150 | . . . . . 30 . 15 . . . . . . . . . . . . 15 . . . . 30 15 30 . 15 Lose Combat Pursuer 465 | . . . . . . . . . . . . 60 . 45 . . 45 . . . . 30 . 15 . . 120 105 45 Influence Decreases 4618 | 20 5 . . 30 85 39 10 15 21 . . 50 106 298 40 154 629 456 131 311 186 116 77 . 49 525 158 250 857 Entered New Map 1022 | . 3 . . . 41 19 . 3 10 . . . 56 178 40 47 10 186 21 30 126 26 77 . 7 5 18 70 49 Time Decay 2621 | 20 2 . . 30 44 20 10 12 11 . . 50 50 90 . 107 389 150 50 181 50 70 . . 42 460 100 130 553 Lost Part 455 | . . . . . . . . . . . . . . 10 . . 10 . . 40 10 20 . . . 60 40 10 255 Lost Ally 520 | . . . . . . . . . . . . . . 20 . . 220 120 60 60 . . . . . . . 40 . Squads Dispatched 29 | . . . . . 2 . . . . . . . 1 . . . 2 . . 2 . . . . . 8 3 4 7 Investigation 5 | . . . . . . . . . . . . . 1 . . . . . . . . . . . . 1 2 1 . Extermination 12 | . . . . . . . . . . . . . . . . . . . . 1 . . . . . 4 1 2 4 Reinforcement 12 | . . . . . 2 . . . . . . . . . . . 2 . . 1 . . . . . 3 . 1 3 Assault . | . . . . . . . . . . . . . . . . . . . . . . . . . . . . . . Garrison . | . . . . . . . . . . . . . . . . . . . . . . . . . . . . . . Intercept . | . . . . . . . . . . . . . . . . . . . . . . . . . . . . . . Searches Triggered . | . . . . . . . . . . . . . . . . . . . . . . . . . . . . . . Construction Impeded 2 | . . . . . . . . . . . . . . . . . 2 . . . . . . . . . . . . Haulers Reinforced . | . . . . . . . . . . . . . . . . . . . . . . . . . . . . . . Active Scanning Responses . | . . . . . . . . . . . . . . . . . . . . . . . . . . . . . . Cargo Convoy Interrupts . | . . . . . . . . . . . . . . . . . . . . . . . . . . . . . . Stealth | -11 -10 -10 -10 -9 -8 -7 -7 -7 -7 -7 -7 -6 -6 -6 -6 -5 -5 -5 -5 -4 -4 -4 -4 -3 -3 -3 -2 -1 -1 --------- Run | Yrd Mat Min Exi Min Mat Fac Was Fac Low Low Zio Pro Fac Low Low Fac Ext Cet Arc Fac Upp Upp Zhi Pro Res Tes Res Acc Com Distress Signals 14 | . . . . . 1 . . 3 . . . . . . . . 1 1 . 1 . . . . . . 1 2 4 Communications Jammed 49 | . . . . . . . . . . . . . . . . . . . . . . . . . . 4 . 45 . Distress Signals 49 | . . . . . . . . . . . . . . . . . . . . . . . . . . 4 . 45 . Times Spotted 204 | . . . . 4 8 . 4 10 . 1 1 7 2 4 . 2 28 5 3 15 3 6 . 2 1 25 17 10 46 Peak Tracking Total 11 | . . . . 3 6 . 4 9 . 1 1 3 1 3 . 2 5 5 1 6 3 4 . 2 1 4 8 7 11 Tactical Retreats 20 | . . . . . . . . . . . . 2 . 1 . . 3 . . . . 1 . 1 . . 4 3 5 Traps | -11 -10 -10 -10 -9 -8 -7 -7 -7 -7 -7 -7 -6 -6 -6 -6 -5 -5 -5 -5 -4 -4 -4 -4 -3 -3 -3 -2 -1 -1 ------- Run | Yrd Mat Min Exi Min Mat Fac Was Fac Low Low Zio Pro Fac Low Low Fac Ext Cet Arc Fac Upp Upp Zhi Pro Res Tes Res Acc Com Traps Triggered 9 | . . . . . . 1 . . . . . . 2 . . . 4 . . . . . . . . 1 . . 1 Indirectly . | . . . . . . . . . . . . . . . . . . . . . . . . . . . . . . Trap Hack Attempts . | . . . . . . . . . . . . . . . . . . . . . . . . . . . . . . Triggered . | . . . . . . . . . . . . . . . . . . . . . . . . . . . . . . Disarmed . | . . . . . . . . . . . . . . . . . . . . . . . . . . . . . . Reprogrammed . | . . . . . . . . . . . . . . . . . . . . . . . . . . . . . . Reused . | . . . . . . . . . . . . . . . . . . . . . . . . . . . . . . Traps Extracted . | . . . . . . . . . . . . . . . . . . . . . . . . . . . . . . Installed . | . . . . . . . . . . . . . . . . . . . . . . . . . . . . . . Triggered . | . . . . . . . . . . . . . . . . . . . . . . . . . . . . . . Machines | -11 -10 -10 -10 -9 -8 -7 -7 -7 -7 -7 -7 -6 -6 -6 -6 -5 -5 -5 -5 -4 -4 -4 -4 -3 -3 -3 -2 -1 -1 ---------- Run | Yrd Mat Min Exi Min Mat Fac Was Fac Low Low Zio Pro Fac Low Low Fac Ext Cet Arc Fac Upp Upp Zhi Pro Res Tes Res Acc Com Machines Disabled 32 | . . . . . 2 1 . . . . . . 4 1 . 2 4 . 2 1 . . . . . 9 . 3 3 Max in Single Turn 3 | . . . . . 1 1 . . . . . . 3 1 . 1 3 . . 1 . . . . . 1 . 1 1 Garrison Access 4 | . . . . . . . . 1 . . . . . . . . . . . 1 . . . . 1 1 . . . Energy Cycler 1 | . . . . . . . . . . . . . . . . . 1 . . . . . . . . . . . . Machines Repaired . | . . . . . . . . . . . . . . . . . . . . . . . . . . . . . . Machines Dismantled . | . . . . . . . . . . . . . . . . . . . . . . . . . . . . . . Machines Sabotaged . | . . . . . . . . . . . . . . . . . . . . . . . . . . . . . . Overloaded Fab Kills 5 | . . . . . . . . . . . . . . . . . . . . . . . . . . . 5 . . Hacking | -11 -10 -10 -10 -9 -8 -7 -7 -7 -7 -7 -7 -6 -6 -6 -6 -5 -5 -5 -5 -4 -4 -4 -4 -3 -3 -3 -2 -1 -1 --------- Run | Yrd Mat Min Exi Min Mat Fac Was Fac Low Low Zio Pro Fac Low Low Fac Ext Cet Arc Fac Upp Upp Zhi Pro Res Tes Res Acc Com Machines Accessed 63 | . 2 . . . 1 4 . 4 1 . . . 2 . . 1 9 1 . 4 1 . 3 . 2 12 3 4 9 Terminals 40 | . 2 . . . 1 . . 2 . . . . 1 . . 1 7 1 . 2 . . . . 1 8 2 3 9 Fabricators 4 | . . . . . . . . 1 . . . . . . . . . . . . . . . . . 2 1 . . Repair Stations 1 | . . . . . . . . . . . . . 1 . . . . . . . . . . . . . . . . Recycling Units 5 | . . . . . . 3 . . . . . . . . . . 2 . . . . . . . . . . . . Scanalyzers 3 | . . . . . . . . . . . . . . . . . . . . 1 . . . . . 1 . 1 . Garrison Access 5 | . . . . . . 1 . 1 . . . . . . . . . . . 1 . . . . 1 1 . . . Total Hacks 134 | . 6 . . . 3 8 . 7 1 . . . 6 . . 5 13 2 . 9 1 . 13 . 2 25 7 9 17 Successful 72 | . 1 . . . 1 4 . 2 1 . . . 2 . . 4 9 1 . 5 1 . 13 . 2 17 2 2 5 Failed 62 | . 5 . . . 2 4 . 5 . . . . 4 . . 1 4 1 . 4 . . . . . 8 5 7 12 Catastrophic 12 | . 2 . . . . 1 . 2 . . . . . . . . . . . . . . . . . 1 1 1 4 Database Lockouts . | . . . . . . . . . . . . . . . . . . . . . . . . . . . . . . Manual 41 | . 5 . . . 2 . . 2 . . . . 3 . . . 1 1 . 3 . . . . 1 10 7 . 6 Terminals 85 | . 6 . . . 3 . . 3 . . . . 4 . . 5 11 2 . 3 . . . . 1 18 5 7 17 Fabricators 8 | . . . . . . . . 2 . . . . . . . . . . . . . . . . . 4 2 . . Repair Stations 2 | . . . . . . . . . . . . . 2 . . . . . . . . . . . . . . . . Recycling Units 9 | . . . . . . 7 . . . . . . . . . . 2 . . . . . . . . . . . . Scanalyzers 7 | . . . . . . . . . . . . . . . . . . . . 4 . . . . . 1 . 2 . Garrison Access 8 | . . . . . . 1 . 2 . . . . . . . . . . . 2 . . . . 1 2 . . . Terminal Hacks 52 | . 1 . . . 1 . . 1 1 . . . 1 . . 4 7 1 . 1 1 . 13 . 1 11 1 2 5 Record 5 | . . . . . . . . . . . . . . . . . . . . . . . 5 . . . . . . Part Schematic 2 | . . . . . . . . . . . . . . . . 1 . . . . . . . . . 1 . . . Robot Analysis 5 | . . . . . . . . . . . . . . . . 1 . . . . . . 4 . . . . . . Prototype ID Bank 5 | . . . . . . . . . . . . . . . . 1 . . . . . . 4 . . . . . . Open Door 10 | . . . . . . . . . 1 . . . . . . . 4 1 . . 1 . . . . 1 . 2 . Level Access Points 1 | . . . . . . . . . . . . . . . . . . . . . . . . . . 1 . . . Branch Access Points 4 | . . . . . . . . 1 . . . . . . . . . . . 1 . . . . 1 . 1 . . Emergency Access Points 1 | . . . . . . . . . . . . . . . . 1 . . . . . . . . . . . . . Alert Level 7 | . 1 . . . 1 . . . . . . . . . . . 1 . . . . . . . . 1 . . 3 Locate Traps 2 | . . . . . . . . . . . . . 1 . . . 1 . . . . . . . . . . . . Surveillance Status 1 | . . . . . . . . . . . . . . . . . . . . . . . . . . 1 . . . Reinforcement Status 1 | . . . . . . . . . . . . . . . . . . . . . . . . . . 1 . . . Recall Extermination 1 | . . . . . . . . . . . . . . . . . . . . . . . . . . 1 . . . Registered Components 1 | . . . . . . . . . . . . . . . . . . . . . . . . . . 1 . . . Zone Layout 4 | . . . . . . . . . . . . . . . . . 1 . . . . . . . . 3 . . . Disengage Seal 2 | . . . . . . . . . . . . . . . . . . . . . . . . . . . . . 2 Fabricator Hacks 3 | . . . . . . . . . . . . . . . . . . . . . . . . . . 3 . . . Load Schematic 2 | . . . . . . . . . . . . . . . . . . . . . . . . . . 2 . . . Build 1 | . . . . . . . . . . . . . . . . . . . . . . . . . . 1 . . . Repair Station Hacks 1 | . . . . . . . . . . . . . 1 . . . . . . . . . . . . . . . . Scan Component 1 | . . . . . . . . . . . . . 1 . . . . . . . . . . . . . . . . Recycling Unit Hacks 6 | . . . . . . 4 . . . . . . . . . . 2 . . . . . . . . . . . . Report Inventory 5 | . . . . . . 3 . . . . . . . . . . 2 . . . . . . . . . . . . Retrieve Components 1 | . . . . . . 1 . . . . . . . . . . . . . . . . . . . . . . . Scanalyzer 3 | . . . . . . . . . . . . . . . . . . . . 2 . . . . . 1 . . . Retrieve Study 3 | . . . . . . . . . . . . . . . . . . . . 2 . . . . . 1 . . . Garrison Access Hacks 4 | . . . . . . . . 1 . . . . . . . . . . . 1 . . . . 1 1 . . . Seal Access 4 | . . . . . . . . 1 . . . . . . . . . . . 1 . . . . 1 1 . . . Unauthorized Hacks 3 | . . . . . . . . . . . . . . . . . . . . 1 . . . . . 1 1 . . Terminals 2 | . . . . . . . . . . . . . . . . . . . . 1 . . . . . 1 . . . Assimilate 1 | . . . . . . . . . . . . . . . . . . . . 1 . . . . . . . . . Botnet 1 | . . . . . . . . . . . . . . . . . . . . . . . . . . 1 . . . Fabricators 1 | . . . . . . . . . . . . . . . . . . . . . . . . . . . 1 . . Overload 1 | . . . . . . . . . . . . . . . . . . . . . . . . . . . 1 . . Repair Stations . | . . . . . . . . . . . . . . . . . . . . . . . . . . . . . . Recycling Units . | . . . . . . . . . . . . . . . . . . . . . . . . . . . . . . Scanalyzers . | . . . . . . . . . . . . . . . . . . . . . . . . . . . . . . Garrison Access . | . . . . . . . . . . . . . . . . . . . . . . . . . . . . . . Data Cores Recovered 2 | . . . . . . . . . . . . . . . . . . . . . . . . . . . . . 2 Used . | . . . . . . . . . . . . . . . . . . . . . . . . . . . . . . Hacking Detections 44 | . 2 . . . 1 3 . 4 . . . . 2 . . 1 3 1 . 3 . . . . . 11 3 3 7 Full Trace Events 5 | . 2 . . . . . . . . . . . . . . . . . . . . . . . . 1 1 1 . Feedback Events . | . . . . . . . . . . . . . . . . . . . . . . . . . . . . . . Feedback Blocked . | . . . . . . . . . . . . . . . . . . . . . . . . . . . . . . Robot Schematics Acquired 6 | . . . . . . . . . . . 3 . . . . . . . . . . . . . . 3 . . . Robots Built . | . . . . . . . . . . . . . . . . . . . . . . . . . . . . . . Authchips . | . . . . . . . . . . . . . . . . . . . . . . . . . . . . . . Time . | . . . . . . . . . . . . . . . . . . . . . . . . . . . . . . Total Robot Build Rating . | . . . . . . . . . . . . . . . . . . . . . . . . . . . . . . Part Schematics Acquired 24 | . . . . . . . . . . . 16 . . . . 1 . . . . . . . . . 7 . . . Parts Built 2 | . . . . . . . . . . . . . . . . . . . . . . . . . . 2 . . . Authchips . | . . . . . . . . . . . . . . . . . . . . . . . . . . . . . . Time 47 | . . . . . . . . . . . . . . . . . . . . . . . . . . 47 . . . Total Part Build Rating 10 | . . . . . . . . . . . . . . . . . . . . . . . . . . 10 . . . Part Studies Acquired 3 | . . . . . . . . . . . . . . . . . . . . 2 . . . . . 1 . . . Parts Repaired . | . . . . . . . . . . . . . . . . . . . . . . . . . . . . . . Time . | . . . . . . . . . . . . . . . . . . . . . . . . . . . . . . Parts Recycled . | . . . . . . . . . . . . . . . . . . . . . . . . . . . . . . Recycled Matter . | . . . . . . . . . . . . . . . . . . . . . . . . . . . . . . Retrieved Matter . | . . . . . . . . . . . . . . . . . . . . . . . . . . . . . . Retrieved Components 1 | . . . . . . 1 . . . . . . . . . . . . . . . . . . . . . . . Parts Scanalyzed . | . . . . . . . . . . . . . . . . . . . . . . . . . . . . . . Part Schematics Acquired . | . . . . . . . . . . . . . . . . . . . . . . . . . . . . . . Parts Damaged . | . . . . . . . . . . . . . . . . . . . . . . . . . . . . . . Bothacking | -11 -10 -10 -10 -9 -8 -7 -7 -7 -7 -7 -7 -6 -6 -6 -6 -5 -5 -5 -5 -4 -4 -4 -4 -3 -3 -3 -2 -1 -1 ------------ Run | Yrd Mat Min Exi Min Mat Fac Was Fac Low Low Zio Pro Fac Low Low Fac Ext Cet Arc Fac Upp Upp Zhi Pro Res Tes Res Acc Com Used RIF Installer . | . . . . . . . . . . . . . . . . . . . . . . . . . . . . . . Robots Hacked . | . . . . . . . . . . . . . . . . . . . . . . . . . . . . . . Non-combat . | . . . . . . . . . . . . . . . . . . . . . . . . . . . . . . Combat . | . . . . . . . . . . . . . . . . . . . . . . . . . . . . . . Robot Hacks Applied . | . . . . . . . . . . . . . . . . . . . . . . . . . . . . . . Relay Couplers Released . | . . . . . . . . . . . . . . . . . . . . . . . . . . . . . . Fabnet Peak Effective % . | . . . . . . . . . . . . . . . . . . . . . . . . . . . . . . Robots Rewired 11 | . . . . . . . . . . . . . 1 . . . 10 . . . . . . . . . . . . Allies Hacked 1 | . . . . . . . . . . . . 1 . . . . . . . . . . . . . . . . . Hacks Repelled . | . . . . . . . . . . . . . . . . . . . . . . . . . . . . . . Allies | -11 -10 -10 -10 -9 -8 -7 -7 -7 -7 -7 -7 -6 -6 -6 -6 -5 -5 -5 -5 -4 -4 -4 -4 -3 -3 -3 -2 -1 -1 -------- Run | Yrd Mat Min Exi Min Mat Fac Was Fac Low Low Zio Pro Fac Low Low Fac Ext Cet Arc Fac Upp Upp Zhi Pro Res Tes Res Acc Com Total Allies 37 | . . 2 . . . . . . . . 3 . 1 . . . 22 5 . 1 . . . . . . . 3 . Largest Group 10 | . . 2 2 . . . . . . . 3 3 1 1 . . 10 10 9 5 . . . . . . . 3 . Highest-Rated Group 708 | . . 41 41 . . . . . . . 76 76 29 29 . . 406 708 708 480 . . . . . . . 379 . Highest-Rated Ally 159 | . . 31 31 . . . . . . . 31 31 29 29 . . 159 159 159 96 . . . . . . . 135 . Total Orders . | . . . . . . . . . . . . . . . . . . . . . . . . . . . . . . Ally Attacks 270 | . . . . . . . . . . . . 8 . 7 . . 102 39 29 77 . . . . . . . 8 . Total Damage 8133 | . . . . . . . . . . . . 181 . 40 . . 2851 1172 880 2855 . . . . . . . 154 . Kills 44 | . . . . . . . . . . . . 5 . . . . 15 4 3 16 . . . . . . . 1 . Allies Corrupted 1 | . . . . . . . . . . . . . . . . . 1 . . . . . . . . . . . . Allies Melted . | . . . . . . . . . . . . . . . . . . . . . . . . . . . . . . Intel | -11 -10 -10 -10 -9 -8 -7 -7 -7 -7 -7 -7 -6 -6 -6 -6 -5 -5 -5 -5 -4 -4 -4 -4 -3 -3 -3 -2 -1 -1 ------- Run | Yrd Mat Min Exi Min Mat Fac Was Fac Low Low Zio Pro Fac Low Low Fac Ext Cet Arc Fac Upp Upp Zhi Pro Res Tes Res Acc Com Active Infowar (turns) 7667 | 6 45 76 139 79 238 249 38 112 105 132 319 190 116 187 16 415 827 316 107 418 101 142 78 125 104 1258 256 266 1207 Optics 5123 | . . . . . . . . 101 105 132 319 190 116 187 16 415 827 316 107 418 101 142 78 125 104 62 . 55 1207 Sensors 5289 | . . . . . 205 249 38 112 105 132 319 190 116 187 16 415 36 . . 314 99 . . . . 1142 256 266 1092 Seismic 380 | 6 45 76 139 79 35 . . . . . . . . . . . . . . . . . . . . . . . . Decoding 501 | . . . . . . . . . . . . . . . . . . . . . . 135 78 125 104 59 . . . Jamming 3068 | . . . . . . . . . . . . . . . . . . . . . . 142 78 125 104 1258 256 266 839 Robot Analysis Total 5 | . . . . . . . . . . . . . . . . 1 . . . . . . 4 . . . . . . Derelict Logs Recovered 10 | . . . . 1 . . . . 3 1 . 1 . 2 1 . . . . . . 1 . . . . . . . Drone Launches . | . . . . . . . . . . . . . . . . . . . . . . . . . . . . . . Drone Recoveries . | . . . . . . . . . . . . . . . . . . . . . . . . . . . . . . Decoded 0b10 Intel 2 | . . . . . . . . . . . . . . . . . . . . . . . . . 2 . . . . Traps 1 | . . . . . . . . . . . . . . . . . . . . . . . . . 1 . . . . Emergency Access 1 | . . . . . . . . . . . . . . . . . . . . . . . . . 1 . . . . Exploration | -11 -10 -10 -10 -9 -8 -7 -7 -7 -7 -7 -7 -6 -6 -6 -6 -5 -5 -5 -5 -4 -4 -4 -4 -3 -3 -3 -2 -1 -1 ------------- Run | Yrd Mat Min Exi Min Mat Fac Was Fac Low Low Zio Pro Fac Low Low Fac Ext Cet Arc Fac Upp Upp Zhi Pro Res Tes Res Acc Com Turns Passed 7749 | 88 45 76 139 79 238 249 38 112 105 132 319 190 116 187 16 415 827 316 107 418 101 142 78 125 104 1258 256 266 1207 Spaces Moved 9036 | 56 57 27 152 72 198 250 115 335 306 345 835 340 228 347 60 276 532 112 65 420 225 236 139 245 176 920 352 370 1245 Core 1 | 1 . . . . . . . . . . . . . . . . . . . . . . . . . . . . . Treads . | . . . . . . . . . . . . . . . . . . . . . . . . . . . . . . Legs 40 | . . . . . . . . . . . . . . . . . . . . . . . . . . . . . 40 Wheels 363 | 55 57 27 152 72 . . . . . . . . . . . . . . . . . . . . . . . . . Hover 5194 | . . . . . . . . . . . . . . . . 197 532 112 65 420 225 236 139 245 176 920 352 370 1205 Flight 3438 | . . . . . 198 250 115 335 306 345 835 340 228 347 60 79 . . . . . . . . . . . . . Fastest Speed 26 | 50 80 80 80 80 31 27 27 27 27 27 27 26 26 26 26 26 45 45 54 43 41 41 50 50 50 50 52 48 36 Average Speed 44 | 86 80 80 80 80 34 30 28 27 27 27 27 26 26 26 26 51 56 51 78 45 41 46 50 50 50 52 52 48 55 Slowest Speed 360 | 90 80 80 80 80 111 31 29 27 27 27 27 27 26 26 26 150 230 54 94 98 41 50 50 50 50 96 52 48 360 Overloaded Moves . | . . . . . . . . . . . . . . . . . . . . . . . . . . . . . . Propulsion Burnouts . | . . . . . . . . . . . . . . . . . . . . . . . . . . . . . . Robots Hopped 6 | . . . . . 2 . . 4 . . . . . . . . . . . . . . . . . . . . . Potential Cave-ins 16 | . . . . . . . . . . . . . . . . . 10 . . 4 . . . . . . . . 2 Cave-ins Triggered 2 | . . . . . . . . . . . . . . . . . . . . 1 . . . . . . 1 . . Exploration Rate (%) 38 | 4 12 11 52 25 28 9 76 15 59 55 85 60 8 57 14 12 63 64 73 14 44 43 60 52 7 78 15 12 35 Regions Visited 29 Branch Regions 18 Pre-discovered Areas 7 | . . . . 1 . . . . . . 2 1 . . . . . . . . . . 3 . . . . . . Known Exits Taken 17 | . . . . . 1 . . 1 1 1 1 1 1 1 1 1 1 1 1 1 . . . . 1 1 . 1 . Unknown Exits Taken 10 | 1 1 1 1 1 . . . . . . . . . . . . . . . . 1 1 1 1 . . 1 . . Scrap Searched 13 | . . . . 1 . . . . 3 . 4 1 . 1 . . . . . . 1 1 . 1 . . . . . Spaces Dug 172 | . . . . . 8 . . . . 53 . . . 5 . 13 31 . . 6 . . . . 4 24 9 6 13 Terrain Destroyed 429 | . . . . . 9 . . . 2 90 . . 23 5 . 13 154 . . 14 . 18 . . 4 35 9 6 47 Melee 72 | . . . . . . . . . . . . . . 5 . 13 5 . . 5 . . . . 4 18 9 6 7 Projectile 77 | . . . . . 9 . . . . . . . . . . . 8 . . 3 . . . . . 17 . . 40 AOE 280 | . . . . . . . . . 2 90 . . 23 . . . 141 . . 6 . 18 . . . . . . . Terrain Rammed . | . . . . . . . . . . . . . . . . . . . . . . . . . . . . . . Walls Destroyed . | . . . . . . . . . . . . . . . . . . . . . . . . . . . . . . Machines Disabled . | . . . . . . . . . . . . . . . . . . . . . . . . . . . . . . Actions | -11 -10 -10 -10 -9 -8 -7 -7 -7 -7 -7 -7 -6 -6 -6 -6 -5 -5 -5 -5 -4 -4 -4 -4 -3 -3 -3 -2 -1 -1 --------- Run | Yrd Mat Min Exi Min Mat Fac Was Fac Low Low Zio Pro Fac Low Low Fac Ext Cet Arc Fac Upp Upp Zhi Pro Res Tes Res Acc Com Total 12093 | 81 56 81 169 85 353 423 119 348 320 375 924 440 275 434 59 511 975 357 120 615 231 262 145 247 183 1492 390 423 1600 Wait 2166 | 6 . 55 18 . 130 165 2 5 5 21 78 97 8 81 . 189 264 231 52 156 3 19 . 1 3 388 13 3 173 Move 8997 | 55 56 26 151 71 194 250 114 327 305 344 834 339 227 346 59 275 531 111 64 418 224 235 138 244 175 919 351 369 1245 Hop 4 | . . . . . 1 . . 3 . . . . . . . . . . . . . . . . . . . . . Pick Up 65 | 5 . . . 5 3 1 1 1 1 . 2 1 . . . 5 1 1 . 3 . . 3 1 . 14 2 7 8 Fast Attach 70 | 7 . . . 1 2 2 1 2 . . 1 . 1 . . 7 3 1 . . 1 2 3 . . 14 2 8 12 Attach 60 | . . . . . 5 . . . . 2 . . . 1 . 2 6 1 1 3 2 2 . . . 12 2 5 16 Detach 25 | . . . . . 2 . . . . . 2 . . . . . 6 . . 2 . 1 . . . 6 1 2 3 Swap 44 | 1 . . . . 3 . . 2 . . 1 1 . . . 2 6 . 1 1 . . . . . 8 . 1 17 Drop 96 | 1 . . . 3 2 4 1 3 1 . 2 2 1 . . 7 7 1 1 2 . . 1 1 . 23 2 5 26 Fire 289 | 6 . . . 5 11 1 . 5 8 8 4 . 8 . . . 34 9 1 23 . 2 . . . 61 2 11 90 Melee 161 | . . . . . . . . . . . . . . 6 . 24 33 2 . 6 1 1 . . 5 47 15 12 9 Ram 1 | . . . . . . . . . . . . . . . . . . . . . . . . . . . . . 1 Kick . | . . . . . . . . . . . . . . . . . . . . . . . . . . . . . . Crush . | . . . . . . . . . . . . . . . . . . . . . . . . . . . . . . Escape Stasis 50 | . . . . . . . . . . . . . 15 . . . 34 . . 1 . . . . . . . . . Rewire 65 | . . . . . . . . . . . . . 15 . . . 50 . . . . . . . . . . . . Trap . | . . . . . . . . . . . . . . . . . . . . . . . . . . . . . . Miscellaneous . | . . . . . . . . . . . . . . . . . . . . . . . . . . . . . . Route ------- -11/Scrapyard -10/Materials -10/Mines -10/Exiles -9/Mines -8/Materials -7/Factory -7/Waste -7/Factory (discovered 2 exits: *Low x2) -7/Lower Caves -7/Lower Caves -7/Zion -6/Proximity Caves -6/Factory (discovered 3 exits: Fac / *Low x2) -6/Lower Caves -6/Lower Caves -5/Factory (discovered 4 exits: *Fac x2 / Upp / *Ext) -5/Extension (discovered 2 exits: *Fac / *Cet) -5/Cetus -5/Archives (discovered 2 exits: *Fac / [*Hub]) -4/Factory (discovered 2 exits: *Upp x2) -4/Upper Caves -4/Upper Caves -4/Zhirov -3/Proximity Caves -3/Research (discovered 3 exits: Arm / *Tes x2) -3/Testing -2/Research (discovered 3 exits: *Acc / Qua x2) -1/Access (discovered 2 exits: Sur / *Com) -1/Command History --------- Turn | Location | Event 9 | -11/Scrapyard | Discovered new exit (range 16) 89 | -11/Scrapyard | Entered Materials 102 | -10/Materials | Discovered new exit (range 14) 134 | -10/Materials | Entered Mines 178 | -10/Mines | Assembled infested the area 186 | -10/Mines | Deemed a non-threat by the Exiles lab entrance 187 | -10/Mines | Discovered new exit (range 5) 210 | -10/Mines | Entered Exiles 210 | -10/Exiles | Accompanied by 2 allies 231 | -10/Exiles | Met 8R-AWN 240 | -10/Exiles | Led the pair of lost Derelicts to a safe place 276 | -10/Exiles | Met EX-HEX 298 | -10/Exiles | Met EX-BIN 309 | -10/Exiles | Met EX-DEC 313 | -10/Exiles | Build established: Mutant 341 | -10/Exiles | Discovered new exit (range 10) 349 | -10/Exiles | Entered Mines 415 | -9/Mines | Discovered new exit (range 15) 416 | -9/Mines | Learned location of Zion (-7) 428 | -9/Mines | Entered Materials 428 | -8/Materials | Evolved 4 slots: Propulsion x3, Utility x1 665 | -8/Materials | Discovered new exit (range 4) 666 | -8/Materials | Identified exit to Factory 666 | -8/Materials | Entered Factory 666 | -7/Factory | Evolved 2 slots: Utility x2 915 | -7/Factory | Sucked down chute 915 | -7/Factory | Entered Waste 920 | -7/Waste | Spotted C-40 Crusher 924 | -7/Waste | Spotted C-40 Crusher 925 | -7/Waste | Spotted C-40 Crusher 925 | -7/Waste | Spotted C-40 Crusher 925 | -7/Waste | Spotted C-40 Crusher 928 | -7/Waste | Build established: Scavenger-Sprinter 929 | -7/Waste | Spotted C-40 Crusher 948 | -7/Waste | Discovered new exit (range 12) 953 | -7/Waste | Identified exit to Factory 953 | -7/Waste | Entered Factory 1040 | -7/Factory | Identified exit to Lower Caves 1065 | -7/Factory | Entered Lower Caves 1118 | -7/Lower Caves | Identified exit to Lower Caves 1137 | -7/Lower Caves | Learned 12 Factory zone layouts 1170 | -7/Lower Caves | Entered another Lower Caves area 1194 | -7/Lower Caves | Learned 8 Factory zone layouts 1255 | -7/Lower Caves | Build established: Scout 1299 | -7/Lower Caves | Discovered new exit (range 11) 1302 | -7/Lower Caves | Identified exit to Zion 1302 | -7/Lower Caves | Entered Zion 1307 | -7/Zion | Found CR-A16's Pointy Stick 1314 | -7/Zion | Acquired unknown access codes intercepted by a Zionite 1324 | -7/Zion | Gained Derelict followers 1344 | -7/Zion | Learned location of Armory (-3) 1430 | -7/Zion | Met Imprinter 1554 | -7/Zion | Discovered new exit (range 14) 1560 | -7/Zion | Identified exit to Proximity Caves 1621 | -7/Zion | Entered Proximity Caves 1621 | -6/Proximity Caves | Accompanied by 3 allies 1705 | -6/Proximity Caves | Spotter reported a threat 1705 | -6/Proximity Caves | Spotter reported a threat 1758 | -6/Proximity Caves | Attracted the attention of an 0b10 checkpoint 1786 | -6/Proximity Caves | Learned location of Extension (-5) 1788 | -6/Proximity Caves | Discovered new exit (range 11) 1796 | -6/Proximity Caves | Identified exit to Factory 1811 | -6/Proximity Caves | Entered Factory 1811 | -6/Factory | Evolved 2 slots: Power x1, Weapon x1 1812 | -6/Factory | Identified exit to Lower Caves 1812 | -6/Factory | Identified exit to Factory 1927 | -6/Factory | Entered Lower Caves 1927 | -6/Lower Caves | Accompanied by 1 ally 1963 | -6/Lower Caves | Learned Factory garrison access intel 2106 | -6/Lower Caves | Discovered new exit (range 6) 2107 | -6/Lower Caves | Identified exit to Lower Caves 2111 | -6/Lower Caves | Attacked by a delusional Derelict stockpiling parts 2114 | -6/Lower Caves | Entered another Lower Caves area 2116 | -6/Lower Caves | Learned Factory security intel 2127 | -6/Lower Caves | Build established: Hacker-Scout 2129 | -6/Lower Caves | Discovered exit to Factory (range 4) 2130 | -6/Lower Caves | Entered Factory 2130 | -5/Factory | Evolved 2 slots: Propulsion x1, Utility x1 2131 | -5/Factory | Identified exit to Upper Caves 2131 | -5/Factory | Identified exit to Extension 2133 | -5/Factory | Loaded intel: 4 garrison access locations 2133 | -5/Factory | Discovered new exit (range 16) 2441 | -5/Factory | Discovered new exit (range 13) 2545 | -5/Factory | Entered Extension 2645 | -5/Extension | Rescued a captive Derelict 2646 | -5/Extension | Rescued a captive Derelict 2787 | -5/Extension | Rescued A7 2819 | -5/Extension | Rescued a captive Derelict 2821 | -5/Extension | Rescued a captive Derelict 2876 | -5/Extension | Spotted B-75 Beast 2883 | -5/Extension | Rescued a captive Derelict 2883 | -5/Extension | Rescued a captive Derelict 3034 | -5/Extension | Energy Cycler disabled 3034 | -5/Extension | Rescued a captive Derelict 3035 | -5/Extension | Rescued a captive Derelict 3035 | -5/Extension | Rescued a captive Derelict 3036 | -5/Extension | Rescued a captive Derelict 3036 | -5/Extension | Rescued a captive Derelict 3037 | -5/Extension | Rescued a captive Derelict 3046 | -5/Extension | Rescued a captive Derelict 3115 | -5/Extension | Allies destroyed B-75 Beast 3319 | -5/Extension | Discovered new exit (range 10) 3319 | -5/Extension | Discovered new exit (range 6) 3322 | -5/Extension | Identified exit to Cetus 3363 | -5/Extension | Build established: Hacker-Mutant 3372 | -5/Extension | Entered Cetus 3372 | -5/Cetus | Accompanied by 10 allies (A7) 3377 | -5/Cetus | Acquired a Cetus Manufacturing Module code from A7 3402 | -5/Cetus | Spotted Cetus Guard 3403 | -5/Cetus | Spotted Cetus Guard 3404 | -5/Cetus | Spotted Cetus Guard 3407 | -5/Cetus | Spotted Cetus Guard 3419 | -5/Cetus | Destroyed Cetus Guard 3422 | -5/Cetus | Allies destroyed Cetus Guard 3438 | -5/Cetus | Allies destroyed Cetus Guard 3446 | -5/Cetus | Allies destroyed Cetus Guard 3470 | -5/Cetus | Lost 6 allies 3476 | -5/Cetus | Escorted A7 to Cetus Mainframe 3482 | -5/Cetus | Started Cetus Manufacturing Module 3507 | -5/Cetus | Manufactured an Enhanced Grunt 3532 | -5/Cetus | Manufactured an Enhanced Grunt 3557 | -5/Cetus | Manufactured an Enhanced Grunt 3582 | -5/Cetus | Manufactured an Enhanced Grunt 3607 | -5/Cetus | Manufactured an Enhanced Grunt 3642 | -5/Cetus | Discovered new exit (range 19) 3676 | -5/Cetus | Identified exit to Archives 3688 | -5/Cetus | Entered Archives 3688 | -5/Archives | Accompanied by 9 allies (A7) 3693 | -5/Archives | Received a hacking code to weaken MAIN.C 3726 | -5/Archives | Discovered new exit (range 15) 3737 | -5/Archives | Discovered new exit (range 16) 3752 | -5/Archives | Lost 3 allies 3768 | -5/Archives | Identified exit to Factory 3795 | -5/Archives | Entered Factory 3795 | -4/Factory | Accompanied by 5 allies 3795 | -4/Factory | Evolved 2 slots: Utility x2 4026 | -4/Factory | Identified exit to Upper Caves 4189 | -4/Factory | Crushed by falling debris 4213 | -4/Factory | Entered Upper Caves 4220 | -4/Upper Caves | Lost 4 parts (1n2u1w) 4233 | -4/Upper Caves | Lost 3 allies 4305 | -4/Upper Caves | Discovered new exit (range 13) 4314 | -4/Upper Caves | Entered another Upper Caves area 4349 | -4/Upper Caves | Attracted the attention of an 0b10 checkpoint 4352 | -4/Upper Caves | Spotted B-86 Titan 4383 | -4/Upper Caves | Learned 4 Research zone layouts 4453 | -4/Upper Caves | Discovered new exit (range 7) 4456 | -4/Upper Caves | Entered Zhirov 4456 | -4/Zhirov | Discovered new exit (range 3) 4466 | -4/Zhirov | Met Zhirov 4475 | -4/Zhirov | Learned location of Quarantine (-2) 4475 | -4/Zhirov | Learned location of Testing (-3) 4475 | -4/Zhirov | Learned location of Command (-1) 4479 | -4/Zhirov | Zhirov requested help retrieving the SGEMP Prototype 4489 | -4/Zhirov | Found Alien Artifact 4489 | -4/Zhirov | Identified Integrated Reactor 4489 | -4/Zhirov | Installed Integrated Reactor, increased core energy generation (+10) 4498 | -4/Zhirov | Found Alien Artifact 4534 | -4/Zhirov | Entered Proximity Caves 4654 | -3/Proximity Caves | Discovered new exit (range 10) 4659 | -3/Proximity Caves | Entered Research 4659 | -3/Research | Evolved 2 slots: Utility x1, Weapon x1 4686 | -3/Research | Discovered new exit (range 20) 4694 | -3/Research | Identified exit to Armory 4694 | -3/Research | Identified exit to Testing 4763 | -3/Research | Entered Testing 4842 | -3/Testing | Identified exit to Research 4847 | -3/Testing | Fabricated Cloaking Device? 5187 | -3/Testing | Found Prototype Protection 5458 | -3/Testing | Found Prototype Device 5458 | -3/Testing | Identified AEGIS Remote Shield 5576 | -3/Testing | Found Prototype Energy Cannon 5576 | -3/Testing | Identified Cld. Nova Cannon 5657 | -3/Testing | Identified Med. Regenerative Plating 5662 | -3/Testing | Spotted Striker 5756 | -3/Testing | Spotted Striker 5770 | -3/Testing | Destroyed Striker 5846 | -3/Testing | Destroyed Striker 5868 | -3/Testing | Spotted Alpha 7 5915 | -3/Testing | Destroyed Alpha 7 5942 | -3/Testing | Stole the SGEMP Prototype 5943 | -3/Testing | Lost 3 parts (1p1u1w) 6021 | -3/Testing | Entered Research 6021 | -2/Research | Evolved 2 slots: Utility x2 6139 | -2/Research | Build established: Scavenger-Mutant 6155 | -2/Research | Identified exit to Quarantine 6195 | -2/Research | Crushed by falling debris 6271 | -2/Research | Discovered new exit (range 12) 6277 | -2/Research | Entered Access 6277 | -1/Access | Evolved 2 slots: Propulsion x1, Utility x1 6278 | -1/Access | Delivered the SGEMP Prototype to Zhirov 6278 | -1/Access | Zhirov transferred Access data 6279 | -1/Access | Loaded intel: 129 machine locations 6279 | -1/Access | Loaded intel: 103 trap records 6279 | -1/Access | Identified exit to Surface 6279 | -1/Access | Discovered exit to Surface (range 114) 6279 | -1/Access | Identified exit to Command 6279 | -1/Access | Discovered exit to Command (range 192) 6501 | -1/Access | Zhirov warped through subspace 6543 | -1/Access | Entered Command 6571 | -1/Command | Spotted B-99 Colossus 6893 | -1/Command | Build established: Scavenger-Ninja 7303 | -1/Command | Spotted B-99 Colossus 7380 | -1/Command | Lost 3 parts (1n1u1w) 7405 | -1/Command | Identified Transdimensional Reconstructor 7405 | -1/Command | Failed to warp due to unstable space 7511 | -1/Command | Lost 13 parts (2p4n4u3w) 7533 | -1/Command | Disengaged cave seal 7533 | -1/Command | Wild derelicts emerged from the dark tunnel 7580 | -1/Command | System corruption reached 10% 7582 | -1/Command | Disengaged cave seal 7582 | -1/Command | Wild derelicts emerged from the dark tunnel 7629 | -1/Command | Lost 3 parts (2u1w) 7750 | -1/Command | Self-destructed Last Messages --------------- 07683_ Acquired Energy Well. 07692_ WWXOLKJC3 LQLGQEKF/F 07707_ Destroyed Imp. Particle Charger. 07709_ Nova Cannon destroyed. 07712_ K-01 Serf suffers critical hit (Destroy). 07712_ K-01 Serf destroyed. 07721_ Critical hit (Destroy). 07721_ Quantum Reactor destroyed. 07723_ Acquired 7 matter. 07726_ System corrupted: Matter fused (-9). 07733_ ALERT: Potential suspicious activity detected, Programmers report to Command Zone 4A. 07739_ Acquired Disruptor Cannon. 07742_ System corrupted: Centrium Leg stumbles. 07747_ K-01 Serf collects debris. 07749_ Quantum Reactor destroyed. Map ----- +----------------------------------------------------+ | | | ############?????????????????????????????????????? | | #?????????????????????????????????????? | | ]] #?????????????????????????????????????? | | ]! #?????????????????????????????????????? | | ! !#?????????????????????????????????????? | | ! #?????????????????????????????????????? | | #?????????????????????????????????????? | | #########+#########+######???????????????????????? | | ?????### ????????????????? | | ######"# #???????????????????? | | # #" #???????????????????? | | # ## +???????????????????? | | # ## ^ """#???????????????????? | | # ## ""?????????????????????? | | # ## R"????????????????????? | | # ####### """????????????????????? | | # #????? "" ######??????????????? | | # #???? !! # #??????????????? | | # #?????# !! ! #??????????????? | | # #?????# ! #??????????????? | | # #?????# ####+##### #??????????????? | | # #?????? # #;; ###??????????????? | | "#+########## # ;## #????????????????? | | # s ### #????????????????? | | # ! @s ### #????????????????? | | #################+########s###""###??????????????? | | ########????????????????# #??????????????? | | #????????????????# #??????????????? | | #????????????????# % #??????????????? | | #????????????????#" %k #??????????????? | | #????????????????#"" *%! #??????????????? | | #????????????????#"" % #??????????????? | | #????????????????#"" #??????????????? | | #????????????????#"" #??????????????? | | ########????????????????#"T #??????????????? | | ! #?????????????????#"" #??????????????? | | #?????????????????#"" #??????????????? | | #?????????????????#"" #??????????????? | | #?????????????????#"" ==#??????????????? | | =#?????????????????#" [=#??????????????? | | #?????????????????# ]*]#??????????????? | | #?????????????????# !!%##?????????????? | | #?????????????????###+##+###%##????????????? | | ###################+##### # #?##!##???????????? | | "" # #??## ##?????????? | | T #???##""#########?? | | ###################+###"# *# #????## ### | | #??????????# ## ## #?????# !!## | | #??????????# ## #??#?????# ! ## | +----------------------------------------------------+ Best States ------------- Heat Dissipation 166 Coolant Potential 80 Energy Generation 59 Energy Capacity 950 Matter Stores 300 Matter Capacity 300 Sight Range 20 Robot Scan Range 16 Terrain Scan Density 10 Jamming Range 16 Armor Coverage 225 Resistance: KI 20 Resistance: TH 20 Resistance: EX 20 Resistance: EM 35 Resistance: I 20 Resistance: S 20 Resistance: P 20 Core Shielding 30 Propulsion Shielding 90 Evasion (%) 64 Targeting Accuracy 8 Target Analysis 6 Offensive Hacking 34 Defensive Hacking 12 Item Schematics ----------------- EM Disruption Field | -7/Zion | Archive Fission Core | -7/Zion | Archive Adv. Terrain Scan Processor | -7/Zion | Archive Imp. Proton Missile Launcher | -7/Zion | Archive Energy Filter | -7/Zion | Archive Fusion Compressor | -7/Zion | Archive Spear | -7/Zion | Archive Adv. System Restoration Module | -7/Zion | Archive Remote Force Field | -7/Zion | Archive Xenon Bombardment Thruster | -7/Zion | Archive Cloaking Device | -7/Zion | Archive Imp. Deuterium Engine | -7/Zion | Archive Imp. Hacking Suite | -7/Zion | Archive Matter Compressor | -7/Zion | Archive Imp. Carbon-fiber Leg | -7/Zion | Archive Hvy. Mass Driver | -7/Zion | Archive Imp. Transmission Jammer | -5/Factory | Hacked Enh. Coil Gun | -3/Testing | Archive Lgt. Regenerative Plating | -3/Testing | Hacked Exp. Melee Analysis Suite | -3/Testing | Archive Exp. Optical Array | -3/Testing | Archive Exp. Signal Interpreter | -3/Testing | Archive Shock Maul | -3/Testing | Archive Lgt. Antimatter Cannon | -3/Testing | Archive Robot Schematics ------------------ O-24 Administrator | -7/Zion | Archive S-27 Virus | -7/Zion | Archive Y-54 Guardian | -7/Zion | Archive L-61 Swordsman | -3/Testing | Archive G-67 Veteran | -3/Testing | Archive K-01 Serf | -3/Testing | Archive Fabricated ------------ Cloaking Device | x2 | -3/Testing Repaired ---------- Nothing Studied --------- Imp. Gravmag System | -4/Factory | Hacked Imp. Antigrav System | -4/Factory | Hacked Antigrav Array | -3/Testing | Hacked Alien Tech Used ----------------- Integrated Reactor Transdimensional Reconstructor Achievements -------------- None Challenges ------------ None Game ------ Seed GhostHoverMembrane Manual? 0 Play Time 02:05:20 Cumulative 256.3 hours Start 2025.12.26 @ 21:35:24 End 2025.12.27 @ 18:48:29 Sessions 2 Manual Loads 0 Difficulty Adventurer Special Mode None Game No. 196 Rogue 10 Adventurer 186 Explorer 0 Win Type - Total 17 Types 7/0/7/3/0/0/0/0/0/0 Lore% 76 Gallery% 73 Achievement% 57 Wizard Run 0 Options --------- Layout 1 ASCII 0 Keyboard 0 Movement Mouse Keybinds 0 Fullscreen 1 Font 24/Smallcaps Map View 50x35 Zoom Use 0% Tactical HUD 1 Map Filters NONE Filters NONE Steam 1 RUN: 37dba0de-2a9e-4ade-b1d5-5c796009a169